lending/lending_fUSD_20241014
["ID","MTS","AMOUNT","RATE_DAILY","PERIOD"]
[340253513,1728921052036,-186.092351,0.00021917,2]
[340253514,1728921052046,-186.092351,0.00021917,2]
[340253515,1728921052057,-607.02276946,0.00021917,2]
[340253516,1728921052066,-186.092351,0.00021917,2]
[340253517,1728921052076,-186.092351,0.00021917,2]
[340253518,1728921052086,-186.092351,0.00021917,2]
[340253519,1728921052095,-511.881242,0.00021917,2]
[340253520,1728921052104,-262.71422777,0.00021917,2]
[340253521,1728921052114,-507.37685506,0.00021917,2]
[340253522,1728921052123,-186.092351,0.00021917,2]
[340253523,1728921052133,-186.092351,0.00021917,2]
[340253524,1728921052142,-570.59080181,0.00021917,2]
[340253525,1728921052152,-186.092351,0.00021917,2]
[340253526,1728921052162,-186.092351,0.00021917,2]
[340253527,1728921052172,-186.092351,0.00021917,2]
[340253528,1728921052181,-500.0,0.00021917,2]
[340253529,1728921052191,-523.94621198,0.00021917,2]
[340253530,1728921052201,-513.82589299,0.00021917,2]
[340253531,1728921052210,-510.88554172,0.00021917,2]
[340253532,1728921052220,-500.0,0.00021917,2]
[340253533,1728921052230,-291.811844,0.00021917,2]
[340253534,1728921052239,-542.30537181,0.00021917,2]
[340253535,1728921052250,-500.0,0.00021917,2]
[340253536,1728921052260,-500.0,0.00021917,2]
[340253537,1728921052270,-517.75511656,0.00021917,2]
[340253538,1728921052279,-500.0,0.00021917,2]
[340253539,1728921052288,-192.3256889,0.00021917,2]
[340253540,1728921052298,-500.0,0.00021917,2]
[340253541,1728921052307,-633.91565345,0.00021917,2]
[340253542,1728921052317,-500.0,0.00021917,2]
[340253543,1728921052326,-410.59744019,0.00021917,2]
[340253544,1728921052336,-500.0,0.00021917,2]
[340253545,1728921052345,-500.0,0.00021917,2]
[340253546,1728921052355,-500.0,0.00021917,2]
[340253547,1728921052364,-500.0,0.00021917,2]
[340253548,1728921052373,-492.160586,0.00021917,2]
[340253549,1728921052383,-632.17149265,0.00021917,2]
[340253550,1728921052392,-581.88801613,0.00021917,2]
[340253551,1728921052402,-590.44250054,0.00021917,2]
[340253552,1728921052411,-500.0,0.00021917,2]
[340253553,1728921052421,-500.0,0.00021917,2]
[340253554,1728921052430,-500.0,0.00021917,2]
[340253555,1728921052439,-500.0,0.00021917,2]
[340253556,1728921052449,-500.0,0.00021917,2]
[340253557,1728921052459,-500.0,0.00021917,2]
[340253558,1728921052468,-500.0,0.00021917,2]
[340253559,1728921052478,-500.0,0.00021917,2]
[340253560,1728921052487,-500.0,0.00021917,2]
[340253561,1728921052498,-500.0,0.00021917,2]
[340253562,1728921052509,-500.0,0.00021917,2]
[340253563,1728921052519,-500.0,0.00021917,2]
[340253564,1728921052528,-500.0,0.00021917,2]
[340253565,1728921052537,-500.0,0.00021917,2]
[340253566,1728921052547,-500.0,0.00021917,2]
[340253567,1728921052557,-500.0,0.00021917,2]
[340253568,1728921052566,-332.05574173,0.00021917,2]
[340253569,1728921052576,-500.0,0.00021917,2]
[340253570,1728921052585,-500.0,0.00021917,2]
[340253571,1728921052594,-500.0,0.00021917,2]
[340253572,1728921052605,-500.0,0.00021917,2]
[340253573,1728921052614,-583.4322385,0.00021917,2]
[340253574,1728921052624,-519.92565107,0.00021917,2]
[340253575,1728921052634,-500.0,0.00021917,2]
[340253576,1728921052643,-500.0,0.00021917,2]
[340253577,1728921052652,-623.033545,0.00021917,2]
[340253578,1728921052662,-505.23290618,0.00021917,2]
[340253579,1728921052671,-500.0,0.00021917,2]
[340253580,1728921052680,-500.0,0.00021917,2]
[340253581,1728921052690,-500.0,0.00021917,2]
[340253582,1728921052699,-500.0,0.00021917,2]
[340253583,1728921052708,-512.38459464,0.00021917,2]
[340253584,1728921052718,-297.99706881,0.00021917,2]
[340253585,1728921052727,-500.0,0.00021917,2]
[340253586,1728921052737,-500.0,0.00021917,2]
[340253587,1728921052749,-500.0,0.00021917,2]
[340253588,1728921052758,-500.0,0.00021917,2]
[340253589,1728921052767,-500.0,0.00021917,2]
[340253590,1728921052778,-500.0,0.00021917,2]
[340253591,1728921052788,-500.0,0.00021917,2]
[340253592,1728921052798,-205.28409508,0.00021917,2]
[340253593,1728921052809,-500.0,0.00021917,2]
[340253594,1728921052819,-500.0,0.00021917,2]
[340253595,1728921052828,-502.76018252,0.00021917,2]
[340253596,1728921052951,-233.57335219,0.00021917,2]
[340253597,1728921052962,-500.0,0.00021917,2]
[340253598,1728921052972,-645.25788268,0.00021917,2]
[340253599,1728921052984,-521.53760308,0.00021917,2]
[340253600,1728921052994,-500.0,0.00021917,2]
[340253601,1728921053004,-500.0,0.00021917,2]
[340253602,1728921053014,-500.0,0.00021917,2]
[340253603,1728921053025,-500.0,0.00021917,2]
[340253604,1728921053035,-542.3479983,0.00021917,2]
[340253605,1728921053044,-500.0,0.00021917,2]
[340253606,1728921053055,-500.0,0.00021917,2]
[340253607,1728921053066,-508.14012608,0.00021917,2]
[340253608,1728921053075,-165.34540841,0.00021917,2]
[340253609,1728921053085,-500.0,0.00021917,2]
[340253610,1728921053095,-532.66089517,0.00021917,2]
[340253611,1728921053104,-500.0,0.00021917,2]
[340253612,1728921053114,-521.80360887,0.00021917,2]
[340253613,1728921053124,-500.0,0.00021917,2]
[340253614,1728921053134,-500.0,0.00021917,2]
[340253615,1728921053144,-500.0,0.00021917,2]
[340253616,1728921053154,-500.0,0.00021917,2]
[340253617,1728921053163,-500.0,0.00021917,2]
[340253618,1728921053173,-500.0,0.00021917,2]
[340253619,1728921053182,-630.82167482,0.00021917,2]
[340253620,1728921053191,-294.00312867,0.00021917,2]
[340253621,1728921053201,-514.84209179,0.00021917,2]
[340253622,1728921053211,-505.93286776,0.00021917,2]
[340253623,1728921053221,-399.58070291,0.00021917,2]
[340253624,1728921053231,-506.208919,0.00021917,2]
[340253625,1728921053240,-520.11918787,0.00021917,2]
[340253626,1728921053251,-1188.06,0.00021917,2]
[340253627,1728921053261,-1188.06,0.00021917,2]
[340253628,1728921053271,-1188.06,0.00021917,2]
[340253629,1728921053281,-235.50914096,0.00021917,2]
[340253630,1728921053894,-952.55085904,0.00021917,2]
[340253631,1728921053909,-1188.06,0.00021917,2]
[340253632,1728921053924,-556.96564229,0.00021917,2]
[340253633,1728921053937,-1188.06,0.00021917,2]
[340253634,1728921053954,-500.0,0.00021917,2]
[340253635,1728921053968,-500.0,0.00021917,2]
[340253636,1728921053983,-1188.06,0.00021917,2]
[340253637,1728921053999,-287.55942414,0.00021917,2]
[340253638,1728921054013,-1188.06,0.00021917,2]
[340253639,1728921054026,-549.86418099,0.00021917,2]
[340253640,1728921054040,-188.26281874,0.00021917,2]
[340253641,1728921054052,-501.62858588,0.00021917,2]
[340253642,1728921054065,-575.38648651,0.00021917,2]
[340253643,1728921054079,-500.0,0.00021917,2]
[340253644,1728921054091,-500.0,0.00021917,2]
[340253645,1728921054105,-500.0,0.00021917,2]
[340253646,1728921054119,-263.74159567,0.00021917,2]
[340253647,1728921054134,-562.13026708,0.00021917,2]
[340253648,1728921054149,-500.0,0.00021917,2]
[340253649,1728921054163,-500.0,0.00021917,2]
[340253650,1728921054175,-500.0,0.00021917,2]
[340253651,1728921054186,-528.05123874,0.00021917,2]
[340253652,1728921054197,-534.61078935,0.00021917,2]
[340253653,1728921054211,-500.0,0.00021917,2]
[340253654,1728921054224,-500.0,0.00021917,2]
[340253655,1728921054237,-500.0,0.00021917,2]
[340253656,1728921054250,-250.4446455,0.00021917,2]
[340253657,1728921054265,-500.0,0.00021917,2]
[340253658,1728921054277,-500.0,0.00021917,2]
[340253659,1728921054290,-285.12628077,0.00021917,2]
[340253660,1728921054301,-374.962373,0.00021917,2]
[340253661,1728921054312,-500.0,0.00021917,2]
[340253662,1728921054324,-500.0,0.00021917,2]
[340253663,1728921054335,-176.41226052,0.00021917,2]
[340253664,1728921054348,-500.0,0.00021917,2]
[340253665,1728921054360,-500.0,0.00021917,2]
[340253666,1728921054373,-342.8,0.00021917,2]
[340253667,1728921054385,-500.0,0.00021917,2]
[340253668,1728921054396,-500.0,0.00021917,2]
[340253669,1728921054408,-380.42132727,0.00021917,2]
[340253670,1728921054420,-639.62050801,0.00021917,2]
[340253671,1728921054432,-363.3675598,0.00021917,2]
[340253672,1728921054444,-70.57441744,0.00021917,2]
[340253673,1728921054463,-429.42558256,0.00021917,2]
[340253674,1728921054474,-29.09441744,0.00021917,2]
[340253675,1728921054489,-470.90558256,0.00021917,2]
[340253676,1728921054502,-500.0,0.00021917,2]
[340253677,1728921054513,-500.0,0.00021917,2]
[340253678,1728921054525,-369.96892301,0.00021917,2]
[340253679,1728921054539,-130.03107699,0.00021917,2]
[340253680,1728921054551,-198.43392301,0.00021917,2]
[340253681,1728921054565,-301.56607699,0.00021917,2]
[340253682,1728921054576,-249.18393221,0.00021917,2]
[340253683,1728921054591,-143.95484154,0.00021917,2]
[340253684,1728921054602,-497.38286046,0.00021917,2]
[340253685,1728921054616,-2.61713954,0.00021917,2]
[340253686,1728921054628,-500.0,0.00021917,2]
[340253687,1728921054640,-500.0,0.00021917,2]
[340253688,1728921054651,-500.0,0.00021917,2]
[340253689,1728921054663,-260.69107425,0.00021917,2]
[340253690,1728921054675,-500.0,0.00021917,2]
[340253691,1728921054687,-500.0,0.00021917,2]
[340253692,1728921054699,-500.0,0.00021917,2]
[340253693,1728921054711,-385.72537653,0.00021917,2]
[340253694,1728921054722,-500.0,0.00021917,2]
[340253695,1728921054735,-536.67668099,0.00021917,2]
[340253696,1728921054748,-525.05236726,0.00021917,2]
[340253697,1728921054768,-510.31135049,0.00021917,2]
[340253698,1728921054781,-235.32833944,0.00021917,2]
[340253699,1728921054792,-500.0,0.00021917,2]
[340253700,1728921054805,-331.72382706,0.00021917,2]
[340253701,1728921054817,-500.0,0.00021917,2]
[340253702,1728921054829,-527.30390928,0.00021917,2]
[340253703,1728921054843,-500.0,0.00021917,2]
[340253704,1728921054853,-411.16789335,0.00021917,2]
[340253705,1728921054864,-500.0,0.00021917,2]
[340253706,1728921054874,-326.27044332,0.00021917,2]
[340253707,1728921054884,-500.0,0.00021917,2]
[340253708,1728921054894,-500.0,0.00021917,2]
[340253709,1728921054904,-541.70386363,0.00021917,2]
[340253710,1728921054914,-500.0,0.00021917,2]
[340253711,1728921054924,-500.0,0.00021917,2]
[340253712,1728921054934,-309.22751095,0.00021917,2]
[340253713,1728921054944,-558.28166594,0.00021917,2]
[340253714,1728921054955,-521.45773905,0.00021917,2]
[340253715,1728921054964,-500.0,0.00021917,2]
[340253716,1728921054975,-513.46012768,0.00021917,2]
[340253717,1728921054990,-500.0,0.00021917,2]
[340253718,1728921055001,-151.0,0.00021917,2]
[340253719,1728921055011,-500.0,0.00021917,2]
[340253720,1728921055022,-151.0,0.00021917,2]
[340253721,1728921055034,-500.0,0.00021917,2]
[340253722,1728921055044,-195.23815966,0.00021917,2]
[340253723,1728921055054,-151.0,0.00021917,2]
[340253724,1728921055064,-500.0,0.00021917,2]
[340253725,1728921055074,-500.0,0.00021917,2]
[340253726,1728921055084,-500.0,0.00021917,2]
[340253727,1728921055093,-500.0,0.00021917,2]
[340253728,1728921055103,-500.0,0.00021917,2]
[340253729,1728921055113,-500.0,0.00021917,2]
[340253730,1728921055124,-193.37202784,0.00021917,2]
[340253731,1728921055134,-226.41246844,0.00021917,2]
[340253732,1728921055143,-500.0,0.00021917,2]
[340253733,1728921055153,-614.95810094,0.00021917,2]
[340253734,1728921055164,-513.02517613,0.00021917,2]
[340253735,1728921055174,-518.91949419,0.00021917,2]
[340253736,1728921055185,-561.2460817,0.00021917,2]
[340253737,1728921055419,-500.0,0.00021917,2]
[340253738,1728921055438,-623.46983091,0.00021917,2]
[340253739,1728921055452,-298.4646978,0.00021917,2]
[340253740,1728921055462,-500.0,0.00021917,2]
[340253741,1728921055472,-548.56454272,0.00021917,2]
[340253742,1728921055481,-500.0,0.00021917,2]
[340253743,1728921055491,-500.0,0.00021917,2]
[340253744,1728921055502,-507.57851214,0.00021917,2]
[340253745,1728921055511,-500.0,0.00021917,2]
[340253746,1728921055521,-547.49246617,0.00021917,2]
[340253747,1728921055531,-500.0,0.00021917,2]
[340253748,1728921055540,-500.0,0.00021917,2]
[340253749,1728921055550,-500.0,0.00021917,2]
[340253750,1728921055559,-556.65931628,0.00021917,2]
[340253751,1728921055569,-500.0,0.00021917,2]
[340253752,1728921055579,-500.0,0.00021917,2]
[340253753,1728921055589,-500.0,0.00021917,2]
[340253754,1728921055598,-151.0,0.00021917,2]
[340253755,1728921055608,-500.0,0.00021917,2]
[340253756,1728921055618,-500.0,0.00021917,2]
[340253757,1728921055627,-526.0842446,0.00021917,2]
[340253758,1728921055637,-500.0,0.00021917,2]
[340253759,1728921055647,-175.37217054,0.00021917,2]
[340253760,1728921055656,-500.0,0.00021917,2]
[340253761,1728921055666,-500.0,0.00021917,2]
[340253762,1728921055675,-500.0,0.00021917,2]
[340253763,1728921055685,-500.0,0.00021917,2]
[340253764,1728921055694,-295.70776139,0.00021917,2]
[340253765,1728921055704,-561.59548727,0.00021917,2]
[340253766,1728921055714,-595.04823121,0.00021917,2]
[340253767,1728921055724,-500.0,0.00021917,2]
[340253768,1728921055733,-527.09147942,0.00021917,2]
[340253769,1728921055744,-500.0,0.00021917,2]
[340253770,1728921055754,-500.0,0.00021917,2]
[340253771,1728921055763,-543.129047,0.00021917,2]
[340253772,1728921055773,-234.0351063,0.00021917,2]
[340253773,1728921055783,-520.05027826,0.00021917,2]
[340253774,1728921055792,-517.62278723,0.00021917,2]
[340253775,1728921055801,-500.0,0.00021917,2]
[340253776,1728921055810,-500.0,0.00021917,2]
[340253777,1728921055820,-500.0,0.00021917,2]
[340253778,1728921055829,-500.0,0.00021917,2]
[340253779,1728921055839,-500.0,0.00021917,2]
[340253780,1728921055848,-500.0,0.00021917,2]
[340253781,1728921055857,-500.0,0.00021917,2]
[340253782,1728921055867,-500.0,0.00021917,2]
[340253783,1728921055876,-500.0,0.00021917,2]
[340253784,1728921055885,-169.12715646,0.00021917,2]
[340253785,1728921055894,-535.48385547,0.00021917,2]
[340253786,1728921055904,-500.0,0.00021917,2]
[340253787,1728921055914,-546.07149534,0.00021917,2]
[340253788,1728921055924,-282.72661037,0.00021917,2]
[340253789,1728921055934,-568.37821024,0.00021917,2]
[340253790,1728921055943,-520.35078769,0.00021917,2]
[340253791,1728921055953,-500.0,0.00021917,2]
[340253792,1728921055963,-500.0,0.00021917,2]
[340253793,1728921055973,-572.27091482,0.00021917,2]
[340253794,1728921055985,-500.0,0.00021917,2]
[340253795,1728921055995,-318.29026984,0.00021917,2]
[340253796,1728921056004,-200.28460666,0.00021917,2]
[340253797,1728921056013,-510.39670749,0.00021917,2]
[340253798,1728921056023,-500.0,0.00021917,2]
[340253799,1728921056032,-500.0,0.00021917,2]
[340253800,1728921056042,-526.31239036,0.00021917,2]
[340253801,1728921056051,-500.0,0.00021917,2]
[340253802,1728921056063,-226.30202634,0.00021917,2]
[340253803,1728921056072,-500.0,0.00021917,2]
[340253804,1728921056081,-510.31099613,0.00021917,2]
[340253805,1728921056091,-500.0,0.00021917,2]
[340253806,1728921056100,-500.0,0.00021917,2]
[340253807,1728921056109,-500.0,0.00021917,2]
[340253808,1728921056118,-500.0,0.00021917,2]
[340253809,1728921056128,-552.41260328,0.00021917,2]
[340253810,1728921056137,-530.08186039,0.00021917,2]
[340253811,1728921056147,-156.382984,0.00021917,2]
[340253812,1728921056156,-500.0,0.00021917,2]
[340253813,1728921056165,-500.0,0.00021917,2]
[340253814,1728921056174,-500.0,0.00021917,2]
[340253815,1728921056183,-500.0,0.00021917,2]
[340253816,1728921056193,-500.0,0.00021917,2]
[340253817,1728921056202,-500.0,0.00021917,2]
[340253818,1728921056212,-500.0,0.00021917,2]
[340253819,1728921056222,-500.0,0.00021917,2]
[340253820,1728921056231,-500.0,0.00021917,2]
[340253821,1728921056241,-214.65947759,0.00021917,2]
[340253822,1728921056252,-500.0,0.00021917,2]
[340253823,1728921056261,-500.0,0.00021917,2]
[340253824,1728921056271,-500.0,0.00021917,2]
[340253825,1728921056281,-645.9357908,0.00021917,2]
[340253826,1728921056290,-500.0,0.00021917,2]
[340253827,1728921056300,-500.0,0.00021917,2]
[340253828,1728921056310,-500.0,0.00021917,2]
[340253829,1728921056319,-556.73229108,0.00021917,2]
[340253830,1728921056328,-500.0,0.00021917,2]
[340253831,1728921056338,-522.23498714,0.00021917,2]
[340253832,1728921056347,-500.0,0.00021917,2]
[340253833,1728921056356,-500.0,0.00021917,2]
[340253834,1728921056367,-500.0,0.00021917,2]
[340253835,1728921056376,-500.0,0.00021917,2]
[340253836,1728921056386,-500.0,0.00021917,2]
[340253837,1728921056395,-607.35612765,0.00021917,2]
[340253838,1728921056405,-500.0,0.00021917,2]
[340253839,1728921056415,-544.11982355,0.00021917,2]
[340253840,1728921056424,-500.0,0.00021917,2]
[340253841,1728921056435,-500.0,0.00021917,2]
[340253842,1728921056444,-500.0,0.00021917,2]
[340253843,1728921056454,-523.49104259,0.00021917,2]
[340253844,1728921056464,-500.0,0.00021917,2]
[340253845,1728921056473,-500.0,0.00021917,2]
[340253846,1728921056483,-500.0,0.00021917,2]
[340253847,1728921056493,-232.90070502,0.00021917,2]
[340253848,1728921056503,-500.0,0.00021917,2]
[340253849,1728921056513,-500.0,0.00021917,2]
[340253850,1728921056523,-500.0,0.00021917,2]
[340253851,1728921056533,-527.2456362,0.00021917,2]
[340253852,1728921056543,-500.0,0.00021917,2]
[340253853,1728921056553,-500.0,0.00021917,2]
[340253854,1728921056562,-524.67590178,0.00021917,2]
[340253855,1728921056572,-500.0,0.00021917,2]
[340253856,1728921056581,-500.0,0.00021917,2]
[340253857,1728921056591,-500.0,0.00021917,2]
[340253858,1728921056600,-203.58107829,0.00021917,2]
[340253859,1728921056610,-273.07449594,0.00021917,2]
[340253860,1728921056619,-500.0,0.00021917,2]
[340253861,1728921056629,-500.0,0.00021917,2]
[340253862,1728921056638,-500.0,0.00021917,2]
[340253863,1728921056648,-620.6131463,0.00021917,2]
[340253864,1728921056658,-512.96957114,0.00021917,2]
[340253865,1728921056667,-500.0,0.00021917,2]
[340253866,1728921056678,-223.577662,0.00021917,2]
[340253867,1728921056687,-500.0,0.00021917,2]
[340253868,1728921056697,-500.0,0.00021917,2]
[340253869,1728921056707,-162.66589929,0.00021917,2]
[340253870,1728921056717,-500.0,0.00021917,2]
[340253871,1728921056726,-223.577662,0.00021917,2]
[340253872,1728921056736,-449.97010509,0.00021917,2]
[340253873,1728921056748,-500.0,0.00021917,2]
[340253874,1728921056759,-223.577662,0.00021917,2]
[340253875,1728921056768,-500.0,0.00021917,2]
[340253876,1728921056778,-223.577662,0.00021917,2]
[340253877,1728921056787,-265.4774299,0.00021917,2]
[340253878,1728921056797,-223.577662,0.00021917,2]
[340253879,1728921056807,-223.577662,0.00021917,2]
[340253880,1728921056816,-516.98237504,0.00021917,2]
[340253881,1728921056826,-500.0,0.00021917,2]
[340253882,1728921056836,-553.0688741,0.00021917,2]
[340253883,1728921056846,-223.577662,0.00021917,2]
[340253884,1728921056855,-518.40284501,0.00021917,2]
[340253885,1728921056865,-223.577662,0.00021917,2]
[340253886,1728921056875,-223.577662,0.00021917,2]
[340253887,1728921056885,-223.577662,0.00021917,2]
[340253888,1728921056895,-223.577662,0.00021917,2]
[340253889,1728921056906,-338.57,0.00021917,2]
[340253890,1728921056915,-223.577662,0.00021917,2]
[340253891,1728921056925,-338.57,0.00021917,2]
[340253892,1728921056934,-338.57,0.00021917,2]
[340253893,1728921056944,-338.57,0.00021917,2]
[340253894,1728921056955,-521.72936314,0.00021917,2]
[340253895,1728921056965,-338.57,0.00021917,2]
[340253896,1728921056976,-500.0,0.00021917,2]
[340253897,1728921056989,-338.57,0.00021917,2]
[340253898,1728921057000,-500.0,0.00021917,2]
[340253899,1728921057010,-550.78053886,0.00021917,2]
[340253900,1728921057020,-338.57,0.00021917,2]
[340253901,1728921057031,-239.3237224,0.00021917,2]
[340253902,1728921057041,-338.57,0.00021917,2]
[340253903,1728921057051,-338.57,0.00021917,2]
[340253904,1728921057062,-338.57,0.00021917,2]
[340253905,1728921057072,-500.0,0.00021917,2]
[340253906,1728921057082,-500.0,0.00021917,2]
[340253907,1728921057091,-500.0,0.00021917,2]
[340253908,1728921057101,-500.0,0.00021917,2]
[340253909,1728921057111,-500.0,0.00021917,2]
[340253910,1728921057120,-620.62401541,0.00021917,2]
[340253911,1728921057129,-500.0,0.00021917,2]
[340253912,1728921057138,-500.0,0.00021917,2]
[340253913,1728921057148,-500.0,0.00021917,2]
[340253914,1728921057158,-500.0,0.00021917,2]
[340253915,1728921057168,-500.0,0.00021917,2]
[340253916,1728921057178,-500.0,0.00021917,2]
[340253917,1728921057187,-500.0,0.00021917,2]
[340253918,1728921057196,-321.76253968,0.00021917,2]
[340253919,1728921057206,-500.0,0.00021917,2]
[340253920,1728921057215,-500.0,0.00021917,2]
[340253921,1728921057224,-509.85859421,0.00021917,2]
[340253922,1728921057233,-500.0,0.00021917,2]
[340253923,1728921057243,-500.0,0.00021917,2]
[340253924,1728921057252,-500.0,0.00021917,2]
[340253925,1728921057262,-230.67062142,0.00021917,2]
[340253926,1728921057271,-507.91641017,0.00021917,2]
[340253927,1728921057281,-500.0,0.00021917,2]
[340253928,1728921057290,-500.0,0.00021917,2]
[340253929,1728921057300,-500.0,0.00021917,2]
[340253930,1728921057310,-500.0,0.00021917,2]
[340253931,1728921057319,-500.0,0.00021917,2]
[340253932,1728921057328,-500.0,0.00021917,2]
[340253933,1728921057338,-532.43345929,0.00021917,2]
[340253934,1728921057347,-500.0,0.00021917,2]
[340253935,1728921057356,-500.0,0.00021917,2]
[340253936,1728921057366,-504.63460348,0.00021917,2]
[340253937,1728921057375,-171.25903167,0.00021917,2]
[340253938,1728921057385,-500.0,0.00021917,2]
[340253939,1728921057394,-647.72234937,0.00021917,2]
[340253940,1728921057403,-500.0,0.00021917,2]
[340253941,1728921057412,-500.0,0.00021917,2]
[340253942,1728921057422,-150.88663133,0.00021917,2]
[340253943,1728921057431,-500.0,0.00021917,2]
[340253944,1728921057440,-494.0,0.00021917,2]
[340253945,1728921057450,-500.0,0.00021917,2]
[340253946,1728921057459,-500.0,0.00021917,2]
[340253947,1728921057468,-500.0,0.00021917,2]
[340253948,1728921057478,-415.51209287,0.00021917,2]
[340253949,1728921057487,-225.76065675,0.00021917,2]
[340253950,1728921057498,-500.0,0.00021917,2]
[340253951,1728921057507,-646.96538905,0.00021917,2]
[340253952,1728921057517,-500.0,0.00021917,2]
[340253953,1728921057527,-500.0,0.00021917,2]
[340253954,1728921057536,-155.07271019,0.00021917,2]
[340253955,1728921057546,-500.0,0.00021917,2]
[340253956,1728921057555,-500.0,0.00021917,2]
[340253957,1728921057565,-500.0,0.00021917,2]
[340253958,1728921057574,-228.71860437,0.00021917,2]
[340253959,1728921057584,-500.0,0.00021917,2]
[340253960,1728921057593,-500.0,0.00021917,2]
[340253961,1728921057602,-500.0,0.00021917,2]
[340253962,1728921057612,-500.0,0.00021917,2]
[340253963,1728921057621,-464.98190526,0.00021917,2]
[340253964,1728921057631,-340.63521758,0.00021917,2]
[340253965,1728921057640,-500.0,0.00021917,2]
[340253966,1728921057650,-500.0,0.00021917,2]
[340253967,1728921057659,-500.0,0.00021917,2]
[340253968,1728921057669,-393.02010693,0.00021917,2]
[340253969,1728921057678,-340.41374252,0.00021917,2]
[340253970,1728921057687,-343.4918856,0.00021917,2]
[340253971,1728921057697,-500.0,0.00021917,2]
[340253972,1728921057707,-500.0,0.00021917,2]
[340253973,1728921057717,-630.93914517,0.00021917,2]
[340253974,1728921057726,-505.12505809,0.00021917,2]
[340253975,1728921057736,-500.0,0.00021917,2]
[340253976,1728921057746,-500.0,0.00021917,2]
[340253977,1728921057756,-538.75300202,0.00021917,2]
[340253978,1728921057766,-500.0,0.00021917,2]
[340253979,1728921057776,-500.0,0.00021917,2]
[340253980,1728921057786,-500.0,0.00021917,2]
[340253981,1728921057795,-500.0,0.00021917,2]
[340253982,1728921057804,-556.67968906,0.00021917,2]
[340253983,1728921057814,-531.51263051,0.00021917,2]
[340253984,1728921057824,-500.0,0.00021917,2]
[340253985,1728921057835,-500.0,0.00021917,2]
[340253986,1728921057844,-500.0,0.00021917,2]
[340253987,1728921057854,-500.0,0.00021917,2]
[340253988,1728921057864,-500.0,0.00021917,2]
[340253989,1728921057874,-516.34280783,0.00021917,2]
[340253990,1728921057884,-361.76140849,0.00021917,2]
[340253991,1728921057894,-500.0,0.00021917,2]
[340253992,1728921057904,-500.0,0.00021917,2]
[340253993,1728921057914,-500.0,0.00021917,2]
[340253994,1728921057923,-500.0,0.00021917,2]
[340253995,1728921057934,-500.0,0.00021917,2]
[340253996,1728921057944,-500.0,0.00021917,2]
[340253997,1728921057954,-500.0,0.00021917,2]
[340253998,1728921057965,-500.0,0.00021917,2]
[340253999,1728921057975,-500.0,0.00021917,2]
[340254000,1728921057988,-253.42757555,0.00021917,2]
[340254001,1728921057999,-500.0,0.00021917,2]
[340254002,1728921058009,-500.0,0.00021917,2]
[340254003,1728921058019,-500.0,0.00021917,2]
[340254004,1728921058029,-500.0,0.00021917,2]
[340254005,1728921058039,-1584.57,0.00021917,2]
[340254006,1728921058049,-500.0,0.00021917,2]
[340254007,1728921058061,-500.0,0.00021917,2]
[340254008,1728921058071,-1584.57,0.00021917,2]
[340254009,1728921058082,-530.12543468,0.00021917,2]
[340254010,1728921058091,-500.0,0.00021917,2]
[340254011,1728921058101,-500.0,0.00021917,2]
[340254012,1728921058111,-1584.57,0.00021917,2]